bitfinex/quotes_BTCUSD_20220115
["timestamp","ask_amount","ask_price","bid_price","bid_amount"]
[1642205257561,0.34310339,43049.0,43043.0,0.37776928]
[1642205257759,0.32280345,43050.0,43044.0,0.058073]
[1642205258662,0.29685323,43048.0,43044.0,0.058073]
[1642205259665,0.29685323,43048.0,43043.0,0.39676928]
[1642205260264,0.34080345,43050.0,43043.0,0.39676928]
[1642205260465,0.593648,43049.0,43043.0,0.39676928]
[1642205260668,0.593648,43049.0,43043.0,0.37776928]
[1642205261335,0.33180528,43049.0,43043.0,0.37776928]
[1642205261838,0.018,43049.0,43043.0,0.37776928]
[1642205262835,0.593648,43050.0,43045.0,0.058073]
[1642205263435,0.615648,43050.0,43045.0,0.058073]
[1642205263835,0.022,43050.0,43045.0,0.058073]
[1642205264635,0.85137513,43051.0,43045.0,0.058073]
[1642205264835,0.85137513,43051.0,43043.0,0.37776928]
[1642205265279,0.87337513,43051.0,43043.0,0.37776928]
[1642205265681,0.593648,43049.0,43043.0,0.37776928]
[1642205267480,0.018,43049.0,43043.0,0.37776928]
[1642205267881,0.018,43049.0,43043.0,0.68163626]
[1642205268081,0.018,43049.0,43043.0,0.37776928]
[1642205268585,0.85137513,43051.0,43043.0,0.37776928]
[1642205269019,0.593648,43050.0,43043.0,0.37776928]
[1642205269815,0.87337513,43051.0,43043.0,0.37776928]
[1642205270216,0.593648,43050.0,43043.0,0.37776928]
[1642205270817,0.651723,43050.0,43043.0,0.37776928]
[1642205271017,0.593648,43050.0,43043.0,0.37776928]
[1642205271420,0.614648,43050.0,43043.0,0.05]
[1642205271618,0.3229577,43046.0,43038.0,0.015]
[1642205271819,0.31327199,43045.0,43038.0,0.015]
[1642205272019,0.3229577,43046.0,43038.0,0.015]
[1642205272462,0.25974503,43039.0,43038.0,0.015]
[1642205272663,0.25974503,43039.0,43037.0,0.38076345]
[1642205273662,0.31782769,43039.0,43037.0,0.38076345]
[1642205274464,0.31782769,43039.0,43037.0,0.43076345]
[1642205275066,0.63516083,43039.0,43036.0,0.03490284]
[1642205275267,0.058085,43038.0,43036.0,0.03490284]
[1642205275466,0.058085,43038.0,43037.0,0.109]
[1642205275666,0.058085,43038.0,43037.0,0.159]
[1642205275868,0.058085,43038.0,43037.0,0.109]
[1642205276070,2.1726151,43038.0,43037.0,0.109]
[1642205276311,2.68287361,43038.0,43037.0,0.109]
[1642205276711,2.36324251,43038.0,43037.0,0.109]
[1642205276912,0.00127575,43031.0,43017.0,0.00765487]
[1642205277114,0.058106,43026.0,43018.0,0.50574927]
[1642205277310,0.058106,43026.0,43019.0,0.376257]
[1642205277512,0.058109,43024.0,43017.0,0.00917965]
[1642205277715,0.058109,43024.0,43018.0,0.376257]
[1642205277912,0.29491629,43019.0,43017.0,0.001256]
[1642205278112,0.35302929,43019.0,43017.0,0.00919479]
[1642205278311,0.35302929,43019.0,43017.0,0.001256]
[1642205278910,0.35302929,43019.0,43017.0,0.0064407]
[1642205279117,0.29188477,43018.0,43017.0,0.001256]
[1642205279315,0.29286323,43018.0,43017.0,0.001256]
[1642205281764,0.69286323,43018.0,43017.0,0.001256]
[1642205281962,0.29286323,43018.0,43017.0,0.001256]
[1642205283464,0.344899,43018.0,43017.0,0.001256]
[1642205283718,0.344899,43018.0,43005.0,0.0022]
[1642205283719,1.95,43016.0,43005.0,0.0022]
[1642205283920,0.00122232,43007.0,43005.0,0.0022]
[1642205284218,0.344899,43006.0,43000.0,0.02143333]
[1642205284423,0.344899,43006.0,43003.0,0.0011]
[1642205284424,0.64143315,43006.0,43003.0,0.0011]
[1642205284819,0.30526285,43005.0,43003.0,0.0011]
[1642205285020,0.344899,43004.0,43003.0,0.0011]
[1642205285221,0.05814674,43003.0,43000.0,0.02143333]
[1642205285422,1.95,43001.0,42997.0,0.43754363]
[1642205285619,0.7102232,43002.0,42997.0,0.00214363]
[1642205285620,0.344899,43000.0,42997.0,0.00214363]
[1642205286120,0.26520833,42998.0,42997.0,0.00214363]
[1642205286322,0.26520833,42998.0,42995.0,0.004307]
[1642205286323,1.094899,42997.0,42995.0,0.004307]
[1642205286721,0.344899,42997.0,42995.0,0.004307]
[1642205286925,0.40304992,42997.0,42995.0,0.004307]
[1642205287321,0.40304992,42997.0,42991.0,0.01005351]
[1642205287322,0.37852108,42996.0,42991.0,0.01005351]
[1642205287569,1.95,42993.0,42987.0,0.0011]
[1642205287868,0.6640232,42995.0,42978.0,0.0011]
[1642205287869,0.47817072,42990.0,42978.0,0.0011]
[1642205288166,0.00127577,42981.0,42978.0,0.0011]
[1642205288368,0.00127577,42981.0,42969.0,0.441]
[1642205288369,0.058181,42976.0,42969.0,0.441]
[1642205288568,0.33916288,42970.0,42966.0,0.19109333]
[1642205288768,0.78040134,42969.0,42964.0,0.0011]
[1642205288968,0.05818907,42968.0,42964.0,0.0011]
[1642205289167,0.344899,42967.0,42964.0,0.0011]
[1642205289366,0.058203,42961.0,42956.0,0.0027806]
[1642205289572,0.34968766,42958.0,42956.0,0.0027806]
[1642205289766,2.32761567,42956.0,42942.0,0.00061372]
[1642205289966,0.39232899,42957.0,42940.0,1.10054107]
[1642205289967,0.33407314,42947.0,42940.0,1.10054107]
[1642205290266,0.01985116,42945.0,42941.0,0.376257]
[1642205290467,0.30162618,42944.0,42941.0,0.376257]
[1642205290666,0.30162618,42944.0,42939.0,0.009315]
[1642205290667,0.27329618,42944.0,42939.0,0.009315]
[1642205290867,0.30891585,42940.0,42939.0,0.009315]
[1642205291068,0.29921585,42940.0,42935.0,0.0011]
[1642205291315,0.36310131,42932.0,42931.0,0.00033333]
[1642205291516,0.70016514,42932.0,42931.0,0.00033333]
[1642205291732,1.10407934,42932.0,42931.0,0.00033333]
[1642205291915,0.44789131,42932.0,42925.0,1.06867654]
[1642205292118,0.08479,42932.0,42928.0,0.3129777]
[1642205292315,0.08479,42932.0,42931.0,0.376257]
[1642205292316,0.01,42932.0,42931.0,0.376257]
[1642205292515,0.01,42932.0,42931.0,1.226257]
[1642205292715,0.01,42932.0,42931.0,1.23817807]
[1642205292716,0.0001,42932.0,42931.0,1.23817807]
[1642205292915,6.099e-05,42939.0,42932.0,1.0]
[1642205293113,6.099e-05,42939.0,42936.0,0.48297094]
[1642205293315,6.099e-05,42939.0,42938.0,1.90192374]
[1642205293515,6.099e-05,42939.0,42938.0,2.0449386]
[1642205293915,6.099e-05,42939.0,42938.0,2.09700521]
[1642205294114,6.099e-05,42939.0,42938.0,2.42817616]
[1642205294315,0.01006099,42939.0,42938.0,2.10516521]
[1642205294513,0.008,42948.0,42938.0,2.10516521]
[1642205294514,0.008,42948.0,42939.0,1.3]
[1642205294719,0.59087738,42956.0,42945.0,0.5774]
[1642205294973,0.6172,42972.0,42945.0,0.5774]
[1642205294974,0.00127205,42960.0,42952.0,0.1]
[1642205295167,0.59087738,42962.0,42951.0,0.02215]
[1642205295168,0.59087738,42962.0,42957.0,0.1]
[1642205295368,0.66687738,42962.0,42958.0,0.1462]
[1642205295567,0.91882244,42962.0,42958.0,0.1962]
[1642205295767,0.01,42959.0,42958.0,0.1962]
[1642205295966,0.01,42959.0,42958.0,0.93318035]
[1642205296167,0.01,42959.0,42957.0,0.03067]
[1642205296367,0.01,42959.0,42946.0,0.21749761]
[1642205296368,0.45,42958.0,42950.0,0.00122478]
[1642205296568,0.01,42959.0,42949.0,0.0462]
[1642205296968,0.01,42959.0,42947.0,0.00012]
[1642205297169,0.6906718,42949.0,42947.0,0.00012]
[1642205298370,2.58305079,42948.0,42947.0,0.00012]
[1642205299114,2.27796173,42948.0,42947.0,0.00012]
[1642205299514,2.30196173,42948.0,42947.0,0.00012]
[1642205300313,0.40196173,42948.0,42947.0,0.00012]
[1642205300514,1.34002748,42948.0,42947.0,0.00012]
[1642205300717,0.37296173,42948.0,42947.0,0.00012]
[1642205300915,0.37296173,42948.0,42933.0,0.2877904]
[1642205300916,0.29514657,42942.0,42934.0,0.45739868]
[1642205301116,0.39401174,42949.0,42935.0,0.376691]
[1642205301418,0.014,42948.0,42937.0,0.1]
[1642205301616,0.014,42948.0,42938.0,0.376761]
[1642205301816,0.014,42948.0,42939.0,0.00122635]
[1642205302018,0.014,42948.0,42940.0,0.376761]
[1642205302216,0.32652515,42941.0,42935.0,0.1962]
[1642205302468,0.33652515,42941.0,42936.0,0.376761]
[1642205302668,0.01,42941.0,42936.0,0.526761]
[1642205303466,0.01,42941.0,42936.0,0.552761]
[1642205303667,0.01,42941.0,42940.0,0.64878555]
[1642205303869,0.01,42941.0,42940.0,0.69105284]
[1642205304072,0.01,42941.0,42940.0,0.84067243]
[1642205304271,0.01,42941.0,42940.0,0.88560016]
[1642205304572,0.01,42941.0,42940.0,2.13560016]
[1642205304975,0.0001,42941.0,42940.0,0.88560016]
[1642205305171,0.0001,42941.0,42940.0,0.94380016]
[1642205305570,0.0001,42941.0,42940.0,0.622948]
[1642205305771,0.0001,42941.0,42940.0,0.376748]
[1642205306815,0.0001,42941.0,42940.0,0.334748]
[1642205307012,0.0001,42941.0,42940.0,0.534748]
[1642205307213,0.0001,42941.0,42940.0,0.434748]
[1642205307412,0.0001,42941.0,42940.0,0.534748]
[1642205307616,0.0001,42941.0,42940.0,0.641748]
[1642205307813,0.0001,42941.0,42940.0,1.37145763]
[1642205308613,9.0001,42941.0,42940.0,1.37145763]
[1642205308814,9.0001,42941.0,42940.0,2.20590963]
[1642205309014,9.0001,42941.0,42940.0,2.30018963]
[1642205309315,9.0001,42941.0,42940.0,1.05702963]
[1642205309514,9.0001,42941.0,42940.0,1.16902963]
[1642205309969,9.0001,42941.0,42940.0,1.16802963]
[1642205310870,9.0001,42941.0,42940.0,1.05602963]
[1642205311074,9.0001,42941.0,42940.0,1.36247511]
[1642205311372,9.0001,42941.0,42940.0,1.11422963]
[1642205311572,9.0001,42941.0,42940.0,1.20422963]
[1642205311771,9.0001,42941.0,42940.0,1.19422963]
[1642205311972,9.0001,42941.0,42940.0,1.4817069]
[1642205312173,9.0001,42941.0,42940.0,1.18922963]
[1642205312373,9.0001,42941.0,42940.0,1.48259836]
[1642205312573,9.0001,42941.0,42940.0,1.18922963]
[1642205312778,9.0001,42941.0,42940.0,1.09922963]
[1642205313075,8.9951,42941.0,42940.0,1.09422963]
[1642205313474,8.9951,42941.0,42940.0,1.21422963]
[1642205313714,8.9951,42941.0,42940.0,1.50209578]
[1642205313913,8.9951,42941.0,42940.0,1.49709578]
[1642205314114,8.9951,42941.0,42940.0,1.18522963]
[1642205314316,9.0051,42941.0,42940.0,2.4219083]
[1642205314515,9.0051,42941.0,42940.0,2.41522963]
[1642205314715,9.0051,42941.0,42940.0,2.29522963]
[1642205315114,8.539563,42941.0,42940.0,2.29022963]
[1642205315318,8.539563,42941.0,42940.0,2.34022963]
[1642205315515,8.539563,42941.0,42940.0,2.41822963]
[1642205315915,8.539563,42941.0,42940.0,2.41322963]
[1642205316715,8.539563,42941.0,42940.0,2.33522963]
[1642205317567,8.539563,42941.0,42940.0,2.44322963]
[1642205317768,8.074025,42941.0,42940.0,2.55638963]
[1642205317971,8.074025,42941.0,42940.0,2.54322963]
[1642205318171,1.90774692,42941.0,42940.0,4.71550991]
[1642205318370,0.59087738,42956.0,42948.0,0.058178]
[1642205318569,0.59087738,42956.0,42953.0,0.058175]
[1642205318769,0.59087738,42956.0,42955.0,1.23]
[1642205318970,0.59087738,42966.0,42955.0,1.98720987]
[1642205319170,0.59087738,42966.0,42955.0,1.76044887]
[1642205319369,0.59087738,42966.0,42955.0,1.89414887]
[1642205319569,0.66587738,42966.0,42955.0,1.89414887]
[1642205319769,0.01,42956.0,42955.0,1.89414887]
[1642205319971,0.01,42956.0,42955.0,2.32908287]
[1642205320774,0.78772417,42983.0,42955.0,2.52908287]
[1642205320975,0.78772417,42983.0,42968.0,0.04071508]
[1642205320976,0.9316,42981.0,42968.0,0.04071508]
[1642205321220,0.9316,42981.0,42969.0,0.0462]
[1642205321422,0.59087738,42975.0,42969.0,0.0462]
[1642205321621,0.60787738,42975.0,42969.0,0.0462]
[1642205321820,0.29267969,42972.0,42969.0,0.0462]
[1642205322022,0.01,42970.0,42969.0,0.0462]
[1642205322220,0.01,42970.0,42969.0,0.41074617]
[1642205322420,0.01,42970.0,42969.0,0.46074617]
[1642205322622,0.01,42970.0,42969.0,1.02822404]
[1642205323521,0.01,42970.0,42969.0,1.09122404]
[1642205323721,0.01,42970.0,42969.0,0.58484687]
[1642205324822,0.01,42970.0,42969.0,0.52184687]
[1642205325064,0.01,42970.0,42969.0,0.72184687]
[1642205325468,0.01,42970.0,42969.0,1.02195623]
[1642205325670,0.01,42970.0,42969.0,0.88995623]
[1642205325969,0.011,42973.0,42969.0,2.26995623]
[1642205326166,0.011,42973.0,42972.0,0.334159]
[1642205326366,0.006,42973.0,42972.0,0.85336823]
[1642205326565,0.59087738,42979.0,42972.0,0.99405823]
[1642205326767,0.59087738,42979.0,42976.0,0.376697]
[1642205326966,0.28884638,42985.0,42978.0,1.23126036]
[1642205327166,0.28884638,42985.0,42982.0,0.058147]
[1642205327365,0.89023081,42984.0,42983.0,0.0462]
[1642205327569,0.29023081,42984.0,42983.0,0.0462]
[1642205327769,0.29023081,42984.0,42980.0,0.0462]
[1642205327770,1.85,42983.0,42980.0,0.0462]
[1642205327968,1.85,42983.0,42978.0,0.003]
[1642205328367,1.56,42979.0,42978.0,0.003]
[1642205328821,0.45308463,42975.0,42973.0,0.0462]
[1642205329222,0.29257542,42978.0,42973.0,0.0462]
[1642205329621,0.018,42975.0,42973.0,0.08691144]
[1642205329821,0.018,42975.0,42974.0,1.601761]
[1642205330020,0.018,42975.0,42974.0,1.847961]
[1642205330219,0.018,42975.0,42974.0,1.84922087]
[1642205331520,0.01,42979.0,42974.0,1.86822087]
[1642205331720,0.01,42979.0,42978.0,0.334061]
[1642205331921,0.01,42979.0,42978.0,0.384061]
[1642205332120,0.01,42979.0,42978.0,0.534061]
[1642205332572,0.01,42979.0,42978.0,0.334061]
[1642205332772,0.01,42979.0,42977.0,0.0988675]
[1642205333171,0.41,42979.0,42978.0,0.376626]
[1642205333374,0.41,42979.0,42977.0,0.0988675]
[1642205333575,0.41,42979.0,42977.0,0.058158]
[1642205333771,0.34204832,42977.0,42976.0,0.058156]
[1642205334073,0.64204832,42977.0,42976.0,0.058156]
[1642205334271,0.34204832,42977.0,42976.0,0.058156]
[1642205334672,0.01,42979.0,42976.0,0.434782]
[1642205334874,0.01,42979.0,42977.0,0.058158]
[1642205335073,0.01,42979.0,42978.0,0.329197]
[1642205335476,0.01,42979.0,42978.0,0.83023074]
[1642205335677,0.01,42979.0,42978.0,0.83147017]
[1642205335879,0.00965224,42979.0,42978.0,0.83147017]
[1642205336077,0.00965224,42979.0,42978.0,2.06147017]
[1642205336318,0.00965224,42979.0,42978.0,0.83147017]
[1642205337116,0.45965224,42979.0,42978.0,0.83147017]
[1642205337317,0.45965224,42979.0,42978.0,0.53043643]
[1642205337717,0.45965224,42979.0,42978.0,0.38743643]
[1642205338018,1.30965224,42979.0,42978.0,0.38743643]
[1642205338218,1.30965224,42979.0,42978.0,0.057]
[1642205338422,1.30965224,42979.0,42978.0,0.007]
[1642205338817,1.30965224,42979.0,42972.0,0.08142118]
[1642205339521,0.24861122,42977.0,42975.0,0.15702461]
[1642205340065,0.24861122,42977.0,42975.0,0.20702461]
[1642205340266,1.46519077,42976.0,42975.0,0.166314]
[1642205340666,0.26519077,42976.0,42975.0,0.20702668]
[1642205340867,0.27519077,42976.0,42975.0,0.58365268]
[1642205341069,0.62519077,42976.0,42975.0,0.68365268]
[1642205341466,0.36,42976.0,42975.0,0.68365268]
[1642205341665,0.042,42976.0,42975.0,0.69265268]
[1642205342066,0.042,42976.0,42975.0,0.9962472]
[1642205342867,0.01,42976.0,42975.0,0.9872472]
[1642205343266,0.01,42976.0,42975.0,2.2172472]
[1642205343466,0.00965224,42979.0,42977.0,0.058146]
[1642205343723,0.00965224,42979.0,42978.0,0.329207]
[1642205343920,0.00965224,42979.0,42978.0,1.80665279]
[1642205344123,0.05919,42984.0,42980.0,0.116282]
[1642205344320,0.05919,42984.0,42981.0,0.421769]
[1642205344520,0.05919,42984.0,42983.0,0.329163]
[1642205344720,0.05919,42984.0,42983.0,0.375361]
[1642205344922,0.05919,42984.0,42983.0,1.805361]
[1642205345422,1.1176,42993.0,42983.0,1.805361]
[1642205345623,0.001,42984.0,42983.0,1.4862]
[1642205345822,0.001,42984.0,42983.0,1.862805]
[1642205346022,0.001,42984.0,42983.0,1.86823577]
[1642205346226,0.001,42984.0,42983.0,1.86856816]
[1642205346422,0.001,42984.0,42983.0,1.862805]
[1642205346822,0.001,42984.0,42983.0,1.852805]
[1642205347222,0.001,42984.0,42983.0,1.910948]
[1642205347675,0.001,42984.0,42983.0,1.926948]
[1642205347870,0.001,42984.0,42983.0,1.776948]
[1642205348071,0.001,42984.0,42983.0,1.876948]
[1642205348272,0.001,42984.0,42983.0,1.826948]
[1642205348571,0.001,42984.0,42983.0,1.926948]
[1642205348774,0.001,42984.0,42983.0,1.910948]
[1642205349572,0.001,42984.0,42983.0,1.925948]
[1642205350774,0.001,42984.0,42983.0,1.910948]
[1642205350978,0.59087738,42989.0,42983.0,1.910948]
[1642205351237,0.59087738,42989.0,42988.0,0.00126553]
[1642205351439,0.25614832,42989.0,42988.0,1.51196853]
[1642205351736,0.01540697,42991.0,42990.0,0.32927831]
[1642205351935,0.01540697,42991.0,42990.0,1.70547831]
[1642205352135,0.78772417,42997.0,42990.0,1.80547831]
[1642205352338,0.001,42991.0,42990.0,1.47747331]
[1642205352535,0.001,42991.0,42990.0,1.91220531]
[1642205352735,0.68230139,42996.0,42990.0,1.91220531]
[1642205353035,0.68230139,42996.0,42993.0,0.058127]
[1642205353235,1.00222447,42996.0,42994.0,0.0462]
[1642205353435,1.00222447,42996.0,42994.0,0.0962]
[1642205353635,0.34455159,43001.0,42994.0,0.40778764]
[1642205353834,0.34455159,43001.0,42997.0,0.058133]
[1642205354038,0.34455159,43001.0,42997.0,0.103333]
[1642205354234,0.34455159,43001.0,42997.0,0.153333]
[1642205354435,0.34455159,43001.0,42998.0,0.05813]
[1642205354638,1.08092883,43007.0,42998.0,0.3616202]
[1642205354837,1.08092883,43007.0,43000.0,0.03487466]
[1642205355083,1.08092883,43007.0,43003.0,0.058124]
[1642205355283,1.08092883,43007.0,43003.0,0.057124]
[1642205355481,0.99536615,43006.0,43003.0,0.057124]
[1642205355682,0.99536615,43006.0,43004.0,0.00125973]
[1642205356183,0.99536615,43006.0,43003.0,0.19637974]
[1642205356382,0.001,43005.0,43003.0,0.19637974]
[1642205356587,0.001,43005.0,43003.0,0.24637974]
[1642205357683,0.001,43005.0,43003.0,0.21150773]
[1642205358084,0.001,43005.0,43003.0,0.107124]
[1642205358285,0.001,43005.0,43003.0,0.05]
[1642205358733,0.001,43005.0,43002.0,0.003]
[1642205358933,0.93628954,42999.0,42998.0,0.21626]
[1642205359334,0.28628954,42999.0,42998.0,0.21626]
[1642205359536,0.99537331,43004.0,42998.0,0.21626]
[1642205360134,1.31996091,43004.0,42998.0,0.21626]
[1642205360335,0.58542945,43004.0,43000.0,0.058133]
[1642205360737,0.58542945,43004.0,43000.0,0.06439056]
[1642205361137,0.58642945,43005.0,43002.0,0.116248]
[1642205361537,0.58642945,43005.0,43002.0,0.166248]
[1642205361744,0.58642945,43005.0,43003.0,0.058114]
[1642205362039,0.001,43005.0,43003.0,0.058114]
[1642205362238,0.001,43005.0,43004.0,1.23]
[1642205362473,0.58542945,43007.0,43004.0,1.33]
[1642205362677,0.9435,43013.0,43004.0,1.43]
[1642205362873,1.96801244,43014.0,43005.0,0.104308]
[1642205362874,0.25781244,43014.0,43005.0,0.104308]
[1642205363074,0.25781244,43014.0,43009.0,0.058114]
[1642205363075,0.30114438,43013.0,43009.0,0.058114]
[1642205363276,0.25781244,43014.0,43005.0,0.05]
[1642205363475,0.30068855,43013.0,43002.0,0.00128978]
[1642205363675,0.3078435,43007.0,43002.0,0.00128978]
[1642205363874,0.3078435,43007.0,43003.0,0.376605]
[1642205364074,0.3078435,43007.0,43003.0,0.05]
[1642205364476,0.3078435,43007.0,43005.0,0.058122]
[1642205364677,0.41302395,43012.0,43006.0,0.058125]
[1642205364878,0.25781244,43014.0,43006.0,0.058125]
[1642205365679,0.24934354,43010.0,43006.0,0.058125]
[1642205366079,0.25781244,43014.0,43006.0,0.058125]
[1642205366327,0.25781244,43014.0,43006.0,0.174354]
[1642205366526,0.25781244,43014.0,43008.0,0.058122]
[1642205366728,0.385,43022.0,43008.0,0.058122]
[1642205366729,0.285,43022.0,43008.0,0.058122]
[1642205366935,0.285,43022.0,43008.0,0.06586498]
[1642205367126,0.28419428,43018.0,43014.0,0.11621]
[1642205367327,0.28419428,43018.0,43014.0,0.16621]
[1642205368129,0.28419428,43018.0,43015.0,0.11621]
[1642205368429,0.321015,43021.0,43015.0,0.11621]
[1642205368730,0.321015,43021.0,43015.0,0.058105]
[1642205369131,0.321015,43021.0,43018.0,0.058103]
[1642205369533,0.30878878,43020.0,43018.0,0.058103]
[1642205370670,0.30878878,43020.0,43018.0,0.116209]
[1642205370866,0.321015,43021.0,43018.0,0.116209]
[1642205371468,0.321015,43021.0,43018.0,0.058106]
[1642205371866,0.31601922,43020.0,43018.0,0.058106]
[1642205374521,0.31601922,43020.0,43018.0,0.116211]
[1642205374923,0.31601922,43020.0,43018.0,0.166211]
[1642205375722,0.321015,43021.0,43018.0,0.166211]
[1642205376123,0.321015,43021.0,43019.0,0.058102]
[1642205376723,0.25925621,43020.0,43019.0,0.058102]
[1642205377124,0.321015,43021.0,43019.0,0.058102]
[1642205377327,0.58542945,43025.0,43022.0,0.058103]
[1642205378169,0.58542945,43025.0,43021.0,0.15808501]
[1642205378368,0.58542945,43025.0,43021.0,0.20428501]
[1642205378569,0.58542945,43025.0,43021.0,0.15808501]
[1642205378768,0.92141464,43027.0,43021.0,0.15808501]
[1642205379070,0.92141464,43027.0,43025.0,0.00120021]
[1642205379269,0.92141464,43027.0,43025.0,0.11738521]
[1642205379471,0.92141464,43027.0,43025.0,0.116185]
[1642205379670,0.33598519,43027.0,43025.0,0.116185]
[1642205380271,0.33598519,43027.0,43025.0,0.166185]
[1642205380472,0.33598519,43027.0,43025.0,0.224279]
[1642205380671,0.33598519,43027.0,43026.0,0.058093]
[1642205380871,0.33598519,43027.0,43026.0,0.057093]
[1642205381324,0.33598519,43027.0,43026.0,0.103293]
[1642205381522,0.58542945,43030.0,43027.0,0.058086]
[1642205381722,0.36958578,43033.0,43028.0,0.058088]
[1642205381723,0.58542945,43031.0,43028.0,0.058088]
[1642205381924,0.58542945,43031.0,43029.0,0.057092]
[1642205382121,1.0418447,43030.0,43029.0,0.057092]
[1642205382321,0.2918447,43030.0,43029.0,0.057092]
[1642205382525,0.92806589,43030.0,43029.0,0.057092]
[1642205382723,0.92806589,43030.0,43026.0,0.0462]
[1642205383124,0.57806589,43030.0,43026.0,0.0462]
[1642205383323,0.001,43027.0,43026.0,0.0462]
[1642205386073,0.001,43027.0,43025.0,0.166185]
[1642205386274,0.001,43027.0,43026.0,0.058092]
[1642205386675,0.001,43027.0,43025.0,0.166185]
[1642205387375,0.001,43027.0,43025.0,0.224281]
[1642205387780,0.001,43027.0,43025.0,0.166185]
[1642205387781,1.13981194,43026.0,43025.0,0.166185]
[1642205388179,1.13981194,43026.0,43025.0,0.05]
[1642205388381,1.85033053,43026.0,43021.0,0.003]
[1642205388719,0.376605,43025.0,43021.0,0.003]
[1642205388915,1.47372553,43026.0,43015.0,0.058108]
[1642205388916,1.13981194,43026.0,43015.0,0.058108]
[1642205389116,0.29156458,43022.0,43015.0,0.058108]
[1642205389316,0.30293745,43018.0,43015.0,0.058108]
[1642205389516,0.30293745,43018.0,43016.0,0.058107]
[1642205389919,0.30293745,43018.0,43016.0,0.108107]
[1642205390118,0.30293745,43018.0,43016.0,0.058107]
[1642205390321,0.30293745,43018.0,43016.0,0.108107]
[1642205391121,0.29156458,43022.0,43016.0,0.108107]
[1642205391321,0.58542945,43024.0,43020.0,0.058099]
[1642205391520,0.58542945,43025.0,43020.0,0.058099]
[1642205392320,0.28412113,43024.0,43020.0,0.058099]
[1642205392568,0.28412113,43024.0,43022.0,0.058099]
[1642205392773,0.28412113,43024.0,43022.0,0.108099]
[1642205393770,0.37804041,43027.0,43022.0,0.108099]
[1642205394070,0.001,43027.0,43024.0,0.058099]
[1642205394470,0.001,43027.0,43024.0,0.108099]
[1642205395672,0.001,43027.0,43024.0,0.1429543]
[1642205396073,0.001,43027.0,43024.0,0.108099]
[1642205396924,0.32285193,43026.0,43024.0,0.108099]
[1642205397324,0.001,43027.0,43024.0,0.108099]
[1642205397723,0.001,43027.0,43025.0,0.058094]
[1642205402072,0.001,43027.0,43024.0,0.108099]
[1642205402472,0.001,43027.0,43025.0,0.058096]
[1642205402674,0.001,43027.0,43024.0,0.108099]
[1642205403725,0.001,43027.0,43025.0,0.058096]
[1642205406327,0.001,43027.0,43025.0,0.108096]
[1642205406527,0.001,43027.0,43025.0,0.058096]
[1642205408070,0.001,43027.0,43025.0,0.35370011]
[1642205408270,0.001,43027.0,43025.0,0.38855488]
[1642205408571,0.001,43027.0,43026.0,0.30623484]
[1642205409070,0.001,43027.0,43025.0,0.14295077]
[1642205409269,0.001,43027.0,43025.0,0.45761167]
[1642205409869,0.001,43027.0,43025.0,0.14895077]
[1642205411334,0.001,43027.0,43025.0,0.37895077]
[1642205411723,0.001,43027.0,43025.0,0.37295077]
[1642205412023,0.001,43027.0,43025.0,0.67320256]
[1642205412224,0.001,43027.0,43026.0,0.29421496]
[1642205412627,0.001,43027.0,43026.0,0.34543335]
[1642205412826,0.58542945,43035.0,43034.0,0.00125178]
[1642205413224,0.58542945,43035.0,43034.0,0.00859256]
[1642205413425,0.58542945,43037.0,43034.0,0.00859256]
[1642205413629,0.58542945,43037.0,43035.0,0.058071]
[1642205413830,0.12090545,43037.0,43035.0,1.35151542]
[1642205414026,0.12090545,43037.0,43036.0,0.38435714]
[1642205414225,0.12090545,43037.0,43036.0,0.376605]
[1642205414425,0.68300103,43039.0,43036.0,1.606605]
[1642205414626,0.68300103,43039.0,43037.0,0.03483688]
[1642205414828,0.33761086,43038.0,43037.0,0.03483688]
[1642205415084,0.33761086,43038.0,43037.0,0.20097288]
[1642205416386,0.33761086,43038.0,43037.0,0.49902589]
[1642205417185,0.83761086,43038.0,43037.0,0.43097288]
[1642205417387,0.83761086,43038.0,43037.0,0.28]
[1642205417388,1.16006251,43038.0,43037.0,0.28]
[1642205417587,1.16006251,43038.0,43037.0,0.23]
[1642205417588,1.53666751,43038.0,43037.0,0.23]
[1642205417788,1.16006251,43038.0,43037.0,0.23]
[1642205418187,2.11781929,43038.0,43037.0,0.23]
[1642205418390,0.5,43038.0,43037.0,0.23]
[1642205418824,1.49472682,43038.0,43037.0,0.23]
[1642205419226,0.99472682,43038.0,43037.0,0.288078]
[1642205419426,0.99472682,43040.0,43038.0,0.03484403]
[1642205419627,0.99472682,43040.0,43038.0,0.09291603]
[1642205419824,0.99472682,43040.0,43038.0,0.14291603]
[1642205420030,0.99472682,43040.0,43039.0,0.05]
[1642205420326,0.68678902,43040.0,43037.0,0.338078]
[1642205420726,0.68678902,43040.0,43038.0,0.116141]
[1642205420926,0.68678902,43040.0,43037.0,0.338078]
[1642205421129,0.68678902,43039.0,43037.0,0.338078]
[1642205422467,0.68678902,43039.0,43037.0,0.45422]
[1642205424070,0.68678902,43039.0,43037.0,0.45722]
[1642205424670,0.68678902,43039.0,43037.0,0.52690103]
[1642205424869,0.58890713,43039.0,43037.0,0.82384516]
[1642205425069,0.58890713,43039.0,43037.0,0.82112497]
[1642205425870,0.58890713,43040.0,43037.0,0.82612497]
[1642205427927,0.58890713,43040.0,43037.0,0.82712497]
[1642205428724,0.58890713,43040.0,43037.0,0.52990103]
[1642205428925,0.58890713,43040.0,43037.0,0.82737577]
[1642205429128,0.58890713,43040.0,43037.0,0.82137577]
[1642205429527,0.58890713,43040.0,43038.0,0.09290719]
[1642205429825,0.58890713,43040.0,43038.0,0.14290719]
[1642205430273,0.58890713,43041.0,43038.0,0.25904819]
[1642205430472,0.58890713,43041.0,43039.0,0.058074]
[1642205430874,0.93890713,43040.0,43039.0,0.058074]
[1642205431476,0.24678276,43044.0,43039.0,0.058074]
[1642205431674,0.24678276,43044.0,43040.0,0.058072]
[1642205431877,0.24678276,43044.0,43042.0,0.058073]